fUST/lending_fUST_20250731
["ID","MTS","AMOUNT","RATE_DAILY","PERIOD"]
[376319385,1753931459740,-460.0,0.00020318,2]
[376319387,1753931459750,-460.0,0.00020318,2]
[376319389,1753931459759,-460.0,0.00020318,2]
[376319391,1753931459768,-460.0,0.00020318,2]
[376319393,1753931459777,-460.0,0.00020318,2]
[376319395,1753931459786,-460.0,0.00020318,2]
[376319397,1753931459795,-460.0,0.00020318,2]
[376319399,1753931459805,-460.0,0.00020318,2]
[376319401,1753931459814,-460.0,0.00020318,2]
[376319402,1753931459823,-464.18903839,0.00020318,2]
[376319405,1753931459833,-460.0,0.00020318,2]
[376319407,1753931459844,-460.0,0.00020318,2]
[376319408,1753931459855,-460.0,0.00020318,2]
[376319410,1753931459864,-460.0,0.00020318,2]
[376319412,1753931459874,-460.0,0.00020318,2]
[376319414,1753931459883,-461.73786236,0.00020318,2]
[376319416,1753931459892,-460.0,0.00020319,2]
[376319418,1753931459901,-460.0,0.00020319,2]
[376319420,1753931459911,-462.75176611,0.00020319,2]
[376319422,1753931459920,-460.0,0.00020319,2]
[376319425,1753931459930,-460.0,0.00020319,2]
[376319427,1753931459939,-460.0,0.00020319,2]
[376319429,1753931459949,-463.32540505,0.00020319,2]
[376319430,1753931459959,-460.0,0.00020319,2]
[376319432,1753931459968,-460.0,0.00020319,2]
[376319434,1753931459977,-460.0,0.00020319,2]
[376319436,1753931459986,-460.0,0.00020319,2]
[376319438,1753931459995,-460.0,0.00020319,2]
[376319440,1753931460006,-464.740153,0.00020319,2]
[376319443,1753931460016,-460.0,0.00020319,2]
[376319444,1753931460025,-460.0,0.00020319,2]
[376319446,1753931460035,-460.0,0.00020319,2]
[376319448,1753931460044,-151.0,0.00020322,2]
[376319450,1753931460054,-151.0,0.00020383,2]
[376319453,1753931460064,-3501.39913343,0.00020417,3]
[376319455,1753931460075,-460.0,0.0002044,2]
[376319457,1753931460085,-460.0,0.00020443,2]
[376319459,1753931460095,-460.0,0.00020443,2]
[376319461,1753931460104,-1595.41,0.00020443,2]
[376319463,1753931460113,-460.0,0.00020443,2]
[376319465,1753931460123,-3904.81,0.00020443,2]
[376319467,1753931460132,-162.83617647,0.00020466,3]
[376319469,1753931460142,-460.0,0.00020468,2]
[376319471,1753931460151,-2329.78,0.00020468,2]
[376319473,1753931460161,-460.0,0.00020468,2]
[376319475,1753931460170,-460.0,0.00020468,2]
[376319477,1753931460180,-460.0,0.00020468,2]
[376319479,1753931460189,-460.0,0.00020468,2]
[376319481,1753931460198,-460.0,0.00020468,2]
[376319483,1753931460208,-460.0,0.00020468,2]
[376319485,1753931460218,-1612.73,0.00020468,2]
[376319487,1753931460228,-1521.49,0.00020468,2]
[376319489,1753931460238,-460.0,0.00020468,2]
[376319491,1753931460248,-460.0,0.00020468,2]
[376319493,1753931460257,-460.0,0.00020468,2]
[376319495,1753931460266,-974.15,0.00020468,2]
[376319497,1753931460275,-460.0,0.00020468,2]
[376319499,1753931460284,-461.34,0.00020468,2]
[376319501,1753931460293,-460.0,0.00020468,2]
[376319503,1753931460303,-557.18,0.00020468,2]
[376319505,1753931460312,-460.0,0.00020468,2]
[376319507,1753931460321,-460.0,0.00020468,2]
[376319509,1753931460331,-1085.26,0.00020468,2]
[376319511,1753931460341,-460.0,0.00020468,2]
[376319513,1753931460350,-562.9649522,0.00020468,2]
[376319515,1753931460360,-460.0,0.00020468,2]
[376319517,1753931460369,-460.0,0.00020468,2]
[376319519,1753931460378,-500.0,0.00020489,2]
[376319521,1753931460388,-460.0,0.00020489,2]
[376319523,1753931460397,-460.0,0.00020489,2]
[376319525,1753931460406,-460.0,0.00020489,2]
[376319527,1753931460415,-460.0,0.00020489,2]
[376319529,1753931460424,-460.0,0.00020489,2]
[376319531,1753931460434,-460.0,0.00020489,2]
[376319533,1753931460443,-460.0,0.00020489,2]
[376319535,1753931460452,-463.8931503,0.00020489,2]
[376319537,1753931460462,-466.7559283,0.00020489,2]
[376319539,1753931460471,-460.0,0.00020489,2]
[376319541,1753931460480,-460.0,0.00020489,2]
[376319543,1753931460489,-460.0,0.00020489,2]
[376319545,1753931460499,-460.0,0.00020489,2]
[376319547,1753931460507,-460.0,0.00020489,2]
[376319549,1753931460517,-189.32144326,0.00020489,2]
[376319551,1753931460526,-460.0,0.00020489,2]
[376319553,1753931460535,-460.0,0.00020489,2]
[376319555,1753931460544,-460.0,0.00020489,2]
[376319557,1753931460553,-460.0,0.00020489,2]
[376319559,1753931460562,-460.0,0.00020489,2]
[376319561,1753931460571,-460.0,0.00020489,2]
[376319563,1753931460580,-460.0,0.00020489,2]
[376319565,1753931460589,-460.0,0.00020489,2]
[376319567,1753931460601,-460.0,0.00020489,2]
[376319569,1753931460611,-463.15336547,0.00020489,2]
[376319571,1753931460620,-460.0,0.00020489,2]
[376319573,1753931460629,-460.0,0.00020489,2]
[376319575,1753931460641,-460.0,0.00020489,2]
[376319577,1753931460652,-460.0,0.00020489,2]
[376319579,1753931460661,-460.0,0.00020489,2]
[376319581,1753931460673,-460.0,0.00020489,2]
[376319583,1753931460683,-460.0,0.00020489,2]
[376319586,1753931460694,-460.0,0.00020489,2]
[376319588,1753931460703,-460.0,0.00020489,2]
[376319590,1753931460713,-460.0,0.00020489,2]
[376319592,1753931460722,-460.0,0.00020489,2]
[376319594,1753931460732,-460.0,0.00020489,2]
[376319596,1753931460742,-464.8465835,0.00020489,2]
[376319598,1753931460751,-460.0,0.00020489,2]
[376319600,1753931460761,-460.0,0.00020489,2]
[376319601,1753931460770,-189.37924759,0.00020489,2]
[376319604,1753931460780,-460.0,0.00020489,2]
[376319605,1753931460789,-460.0,0.00020489,2]
[376319607,1753931460798,-460.0,0.00020489,2]
[376319609,1753931460807,-460.0,0.00020489,2]
[376319611,1753931460816,-460.0,0.00020489,2]
[376319613,1753931460826,-460.0,0.00020489,2]
[376319615,1753931460835,-460.0,0.00020489,2]
[376319617,1753931460845,-460.0,0.00020489,2]
[376319620,1753931460854,-460.0,0.00020489,2]
[376319622,1753931460863,-460.0,0.00020489,2]
[376319624,1753931460872,-462.52235884,0.00020489,2]
[376319626,1753931460881,-460.0,0.00020489,2]
[376319628,1753931460892,-460.0,0.00020489,2]
[376319630,1753931460901,-460.0,0.00020489,2]
[376319632,1753931460910,-460.0,0.00020489,2]
[376319634,1753931460919,-460.0,0.00020489,2]
[376319636,1753931460928,-460.0,0.00020489,2]
[376319638,1753931460937,-460.0,0.00020489,2]
[376319640,1753931460947,-587.94,0.00020489,2]
[376319642,1753931460957,-460.0,0.00020489,2]
[376319644,1753931460967,-616.71,0.00020489,2]
[376319646,1753931460976,-326.54139386,0.00020489,2]
[376319648,1753931460985,-331.72634832,0.00020489,2]
[376319650,1753931460994,-460.0,0.00020489,2]
[376319652,1753931461006,-460.0,0.00020489,2]
[376319654,1753931461015,-460.0,0.00020489,2]
[376319656,1753931461024,-460.0,0.00020489,2]
[376319658,1753931461033,-460.0,0.00020489,2]
[376319660,1753931461042,-460.0,0.00020489,2]
[376319662,1753931461052,-460.0,0.00020489,2]
[376319664,1753931461060,-460.0,0.00020489,2]
[376319666,1753931461069,-460.0,0.00020489,2]
[376319668,1753931461079,-460.0,0.00020489,2]
[376319670,1753931461088,-460.0,0.00020489,2]
[376319672,1753931461097,-460.0,0.00020489,2]
[376319674,1753931461107,-466.60076981,0.00020489,2]
[376319676,1753931461116,-460.0,0.00020489,2]
[376319678,1753931461125,-460.0,0.00020489,2]
[376319680,1753931461134,-460.0,0.00020489,2]
[376319682,1753931461143,-467.33189132,0.00020489,2]
[376319684,1753931461152,-460.0,0.00020489,2]
[376319686,1753931461161,-460.0,0.00020489,2]
[376319688,1753931461171,-460.0,0.00020489,2]
[376319690,1753931461180,-407.22080619,0.00020489,2]
[376319692,1753931461189,-460.0,0.00020489,2]
[376319694,1753931461198,-460.0,0.00020489,2]
[376319696,1753931461207,-460.0,0.00020489,2]
[376319698,1753931461216,-460.0,0.00020489,2]
[376319700,1753931461225,-460.0,0.00020489,2]
[376319702,1753931461234,-460.0,0.00020489,2]
[376319704,1753931461243,-541.91,0.00020489,2]
[376319706,1753931461253,-460.0,0.00020489,2]
[376319708,1753931461262,-460.0,0.00020489,2]
[376319710,1753931461272,-463.71209412,0.00020489,2]
[376319712,1753931461281,-460.0,0.00020489,2]
[376319714,1753931461291,-463.29875478,0.00020489,2]
[376319716,1753931461300,-460.0,0.00020489,2]
[376319718,1753931461310,-460.0,0.00020489,2]
[376319720,1753931461319,-460.0,0.00020489,2]
[376319722,1753931461329,-460.0,0.00020489,2]
[376319724,1753931461338,-460.0,0.00020489,2]
[376319726,1753931461349,-464.49826896,0.00020489,2]
[376319728,1753931461358,-460.0,0.00020489,2]
[376319730,1753931461368,-460.0,0.00020489,2]
[376319732,1753931461378,-460.0,0.00020489,2]
[376319734,1753931461387,-460.0,0.00020489,2]
[376319736,1753931461396,-460.0,0.00020489,2]
[376319738,1753931461406,-500.0,0.00020491,2]
[376319740,1753931461415,-460.0,0.00020494,2]
[376319742,1753931461424,-460.0,0.00020494,2]
[376319744,1753931461434,-460.0,0.00020494,2]
[376319746,1753931461443,-460.0,0.00020494,2]
[376319748,1753931461453,-460.0,0.00020494,2]
[376319750,1753931461462,-460.0,0.00020494,2]
[376319762,1753931461561,-1658.07,0.00020494,2]
[376319764,1753931461571,-460.0,0.00020494,2]
[376319766,1753931461580,-460.0,0.00020494,2]
[376319768,1753931461589,-3726.47,0.00020494,2]
[376319770,1753931461603,-460.0,0.00020494,2]
[376319772,1753931461612,-641.87,0.00020494,2]
[376319774,1753931461622,-1379.98,0.00020494,2]
[376319776,1753931461631,-460.0,0.00020494,2]
[376319778,1753931461642,-1704.11,0.00020494,2]
[376319780,1753931461651,-151.0,0.000205,4]
[376319782,1753931461660,-431.02658484,0.00020521,2]
[376319784,1753931461671,-1000.0,0.00020521,2]
[376319786,1753931461680,-1020.09512674,0.00020521,2]
[376319788,1753931461690,-503.18113681,0.00020521,2]
[376319790,1753931461699,-503.03063813,0.00020521,2]
[376319792,1753931461708,-501.20491629,0.00020521,2]
[376319794,1753931461717,-1001.66944274,0.00020521,2]
[376319796,1753931461727,-1000.0,0.00020521,2]
[376319798,1753931461736,-503.20831509,0.00020521,2]
[376319800,1753931461746,-1200.0,0.00020521,2]
[376319802,1753931461756,-1007.99762055,0.00020521,2]
[376319804,1753931461766,-1135.74493946,0.00020521,2]
[376319806,1753931461775,-1000.0,0.00020521,2]
[376319808,1753931461784,-500.0,0.00020548,2]
[376319810,1753931461794,-1500.0,0.00020568,2]
[376319812,1753931461803,-1511.72741004,0.00020568,2]
[376319814,1753931461812,-1500.0,0.00020568,2]
[376319816,1753931461821,-231.86362258,0.00020568,2]
[376319817,1753931461831,-508.04415326,0.00020568,2]
[376319818,1753931461840,-1500.0,0.00020568,2]
[376319819,1753931461850,-3501.39913343,0.0002059,3]
[376319820,1753931461859,-469.93280832,0.0002059,2]
[376319821,1753931461869,-460.0,0.0002059,2]
[376319822,1753931461879,-460.0,0.0002059,2]
[376319823,1753931461889,-460.0,0.0002059,2]
[376319824,1753931461898,-460.0,0.0002059,2]
[376319825,1753931461907,-463.75711605,0.0002059,2]
[376319826,1753931461917,-460.0,0.0002059,2]
[376319827,1753931461926,-543.16,0.0002059,2]
[376319828,1753931461936,-460.0,0.0002059,2]
[376319829,1753931461946,-460.0,0.0002059,2]
[376319830,1753931461956,-460.0,0.0002059,2]
[376319832,1753931461966,-460.0,0.0002059,2]
[376319834,1753931461975,-460.0,0.0002059,2]
[376319836,1753931461984,-465.97728401,0.0002059,2]
[376319838,1753931461994,-460.0,0.0002059,2]
[376319840,1753931462004,-460.0,0.0002059,2]
[376319842,1753931462014,-460.0,0.0002059,2]
[376319844,1753931462023,-460.0,0.0002059,2]
[376319846,1753931462032,-460.0,0.0002059,2]
[376319848,1753931462041,-460.0,0.0002059,2]
[376319850,1753931462051,-1365.67,0.0002059,2]
[376319852,1753931462060,-465.06173674,0.0002059,2]
[376319854,1753931462070,-460.0,0.0002059,2]
[376319856,1753931462080,-460.0,0.0002059,2]
[376319858,1753931462090,-707.83,0.0002059,2]
[376319860,1753931462099,-460.0,0.0002059,2]
[376319862,1753931462109,-460.0,0.0002059,2]
[376319864,1753931462118,-460.0,0.0002059,2]
[376319867,1753931462128,-460.0,0.0002059,2]
[376319869,1753931462137,-547.76,0.0002059,2]
[376319871,1753931462147,-460.0,0.0002059,2]
[376319873,1753931462156,-460.0,0.0002059,2]
[376319875,1753931462166,-460.0,0.0002059,2]
[376319877,1753931462175,-460.0,0.0002059,2]
[376319879,1753931462184,-460.0,0.0002059,2]
[376319881,1753931462194,-1107.59,0.00020591,2]
[376319883,1753931462204,-460.0,0.00020591,2]
[376319885,1753931462213,-460.0,0.00020591,2]
[376319887,1753931462222,-460.0,0.00020592,2]
[376319889,1753931462232,-460.0,0.00020592,2]
[376319891,1753931462241,-460.0,0.00020592,2]
[376319893,1753931462250,-460.0,0.00020592,2]
[376319895,1753931462260,-464.51041736,0.00020592,2]
[376319897,1753931462268,-460.0,0.00020592,2]
[376319899,1753931462278,-374.01859077,0.00020592,2]
[376319901,1753931462287,-460.0,0.00020592,2]
[376319902,1753931462296,-460.0,0.00020592,2]
[376319904,1753931462305,-460.0,0.00020592,2]
[376319906,1753931462315,-460.0,0.00020592,2]
[376319908,1753931462324,-468.85519734,0.00020592,2]
[376319911,1753931462334,-460.0,0.00020592,2]
[376319913,1753931462344,-463.07131501,0.00020592,2]
[376319915,1753931462353,-460.0,0.00020592,2]
[376319917,1753931462363,-460.0,0.00020592,2]
[376319919,1753931462372,-460.0,0.00020592,2]
[376319921,1753931462381,-460.0,0.00020592,2]
[376319923,1753931462391,-460.0,0.00020592,2]
[376319925,1753931462400,-460.0,0.00020592,2]
[376319927,1753931462409,-460.0,0.00020592,2]
[376319929,1753931462419,-460.0,0.00020592,2]
[376319931,1753931462429,-356.87804565,0.00020592,2]
[376319933,1753931462439,-460.0,0.00020592,2]
[376319935,1753931462448,-460.0,0.00020592,2]
[376319937,1753931462457,-460.0,0.00020592,2]
[376319939,1753931462467,-460.0,0.00020592,2]
[376319941,1753931462476,-460.0,0.00020592,2]
[376319943,1753931462485,-460.0,0.00020592,2]
[376319945,1753931462495,-188.47278744,0.00020592,2]
[376319947,1753931462505,-460.0,0.00020592,2]
[376319949,1753931462514,-460.0,0.00020592,2]
[376319951,1753931462524,-460.0,0.00020592,2]
[376319953,1753931462534,-460.0,0.00020592,2]
[376319955,1753931462544,-460.0,0.00020592,2]
[376319957,1753931462554,-462.13209758,0.00020592,2]
[376319959,1753931462564,-460.0,0.00020592,2]
[376319961,1753931462573,-460.0,0.00020592,2]
[376319963,1753931462583,-480.68276304,0.00020592,2]
[376319966,1753931462593,-460.0,0.00020592,2]
[376319968,1753931462605,-460.0,0.00020592,2]
[376319970,1753931462615,-460.0,0.00020592,2]
[376319972,1753931462625,-472.12077666,0.00020592,2]
[376319974,1753931462635,-279.92271115,0.00020592,2]
[376319976,1753931462645,-460.0,0.00020592,2]
[376319978,1753931462655,-460.0,0.00020592,2]
[376319980,1753931462666,-462.18853297,0.00020592,2]
[376319982,1753931462677,-460.0,0.00020592,2]
[376319984,1753931462686,-460.0,0.00020592,2]
[376319986,1753931462695,-389.64800467,0.00020592,2]
[376319988,1753931462705,-460.0,0.00020592,2]
[376319990,1753931462714,-401.15469468,0.00020592,2]
[376319992,1753931462724,-460.0,0.00020592,2]
[376319994,1753931462734,-460.0,0.00020592,2]
[376319996,1753931462743,-338.28776591,0.00020592,2]
[376319998,1753931462753,-460.0,0.00020592,2]
[376320000,1753931462762,-460.0,0.00020592,2]
[376320002,1753931462772,-460.0,0.00020593,2]
[376320004,1753931462782,-460.0,0.00020593,2]
[376320006,1753931462792,-460.0,0.00020593,2]
[376320008,1753931462802,-218.1460004,0.00020593,2]
[376320010,1753931462811,-460.0,0.00020593,2]
[376320013,1753931462821,-460.0,0.00020593,2]
[376320015,1753931462831,-460.0,0.00020593,2]
[376320017,1753931462841,-460.0,0.00020593,2]
[376320019,1753931462850,-460.0,0.00020593,2]
[376320021,1753931462860,-460.0,0.00020593,2]
[376320023,1753931462869,-293.00981692,0.00020593,2]
[376320025,1753931462879,-460.0,0.00020593,2]
[376320027,1753931462889,-462.49713291,0.00020593,2]
[376320029,1753931462899,-151.0,0.00020596,2]
[376320031,1753931462908,-151.0,0.00020624,2]
[376320033,1753931462918,-500.0,0.00020639,2]
[376320035,1753931462928,-3800.0067079,0.00020668,2]
[376320036,1753931462938,-260.0,0.00020696,2]
[376320038,1753931462947,-151.0,0.000207,3]
[376320039,1753931462957,-460.0,0.00020713,2]
[376320041,1753931462966,-460.0,0.00020716,2]
[376320042,1753931462976,-460.0,0.00020716,2]
[376320044,1753931462985,-1595.41,0.00020716,2]
[376320045,1753931462994,-460.0,0.00020716,2]
[376320047,1753931463003,-3904.81,0.00020716,2]
[376320048,1753931463012,-460.0,0.00020742,2]
[376320050,1753931463022,-2329.78,0.00020742,2]
[376320051,1753931463031,-460.0,0.00020742,2]
[376320053,1753931463041,-460.0,0.00020742,2]
[376320054,1753931463051,-460.0,0.00020742,2]
[376320056,1753931463061,-460.0,0.00020742,2]
[376320057,1753931463070,-460.0,0.00020742,2]
[376320059,1753931463079,-460.0,0.00020742,2]
[376320060,1753931463089,-1612.73,0.00020742,2]
[376320062,1753931463098,-1521.49,0.00020742,2]
[376320063,1753931463107,-460.0,0.00020742,2]
[376320065,1753931463116,-460.0,0.00020742,2]
[376320066,1753931463126,-460.0,0.00020742,2]
[376320068,1753931463143,-974.15,0.00020742,2]
[376320070,1753931463152,-460.0,0.00020742,2]
[376320071,1753931463162,-461.34,0.00020742,2]
[376320073,1753931463171,-460.0,0.00020742,2]
[376320074,1753931463181,-557.18,0.00020742,2]
[376320076,1753931463191,-460.0,0.00020742,2]
[376320077,1753931463200,-460.0,0.00020742,2]
[376320079,1753931463209,-1085.26,0.00020742,2]
[376320081,1753931463219,-460.0,0.00020742,2]
[376320082,1753931463229,-460.0,0.00020742,2]
[376320084,1753931463238,-460.0,0.00020742,2]
[376320086,1753931463248,-319.44,0.00020753,3]
[376320087,1753931463258,-1277.78,0.00020754,3]
[376320089,1753931463268,-638.88,0.00020754,3]
[376320091,1753931463279,-439.88,0.00020755,3]
[376320092,1753931463289,-3501.39913343,0.00020762,3]
[376320094,1753931463298,-500.0,0.00020763,2]
[376320096,1753931463308,-460.0,0.00020763,2]
[376320097,1753931463317,-460.0,0.00020763,2]
[376320099,1753931463327,-460.0,0.00020763,2]
[376320100,1753931463337,-240.69300801,0.00020763,2]
[376320102,1753931463346,-460.0,0.00020763,2]
[376320104,1753931463356,-460.0,0.00020763,2]
[376320105,1753931463366,-460.0,0.00020763,2]
[376320107,1753931463375,-470.44243633,0.00020763,2]
[376320108,1753931463384,-460.0,0.00020763,2]
[376320110,1753931463393,-460.0,0.00020763,2]
[376320112,1753931463403,-460.0,0.00020763,2]
[376320113,1753931463412,-465.09773716,0.00020763,2]
[376320115,1753931463422,-460.0,0.00020763,2]
[376320116,1753931463431,-460.0,0.00020763,2]
[376320118,1753931463440,-460.0,0.00020763,2]
[376320120,1753931463450,-460.0,0.00020763,2]
[376320127,1753931463459,-469.84576239,0.00020763,2]
[376320129,1753931463557,-460.0,0.00020763,2]
[376320131,1753931463567,-391.52996415,0.00020763,2]
[376320132,1753931463576,-460.0,0.00020763,2]
[376320134,1753931463586,-460.0,0.00020763,2]
[376320135,1753931463596,-502.78854129,0.00020763,2]
[376320137,1753931463607,-286.45180702,0.00020763,2]
[376320139,1753931463616,-460.0,0.00020763,2]
[376320140,1753931463625,-460.0,0.00020763,2]
[376320142,1753931463636,-460.0,0.00020763,2]
[376320143,1753931463646,-460.0,0.00020763,2]
[376320145,1753931463655,-465.67288246,0.00020763,2]
[376320147,1753931463665,-460.0,0.00020763,2]
[376320149,1753931463675,-460.0,0.00020763,2]
[376320151,1753931463685,-469.80580821,0.00020763,2]
[376320153,1753931463694,-460.0,0.00020763,2]
[376320155,1753931463704,-460.0,0.00020763,2]
[376320157,1753931463714,-464.04036989,0.00020763,2]
[376320159,1753931463723,-460.0,0.00020763,2]
[376320160,1753931463732,-460.0,0.00020763,2]
[376320162,1753931463741,-460.0,0.00020763,2]
[376320165,1753931463751,-350.24697782,0.00020763,2]
[376320166,1753931463761,-464.7097555,0.00020763,2]
[376320168,1753931463770,-460.0,0.00020763,2]
[376320171,1753931463780,-463.55419024,0.00020763,2]
[376320172,1753931463789,-460.0,0.00020763,2]
[376320174,1753931463799,-460.0,0.00020763,2]
[376320176,1753931463808,-460.0,0.00020763,2]
[376320179,1753931463818,-460.0,0.00020763,2]
[376320181,1753931463827,-460.0,0.00020763,2]
[376320182,1753931463838,-460.0,0.00020763,2]
[376320185,1753931463848,-460.0,0.00020763,2]
[376320187,1753931463858,-460.0,0.00020763,2]
[376320189,1753931463868,-460.0,0.00020763,2]
[376320190,1753931463877,-464.21906672,0.00020763,2]
[376320193,1753931463887,-460.0,0.00020763,2]
[376320194,1753931463896,-587.94,0.00020763,2]
[376320196,1753931463905,-460.0,0.00020763,2]
[376320198,1753931463915,-616.71,0.00020763,2]
[376320200,1753931463925,-460.0,0.00020763,2]
[376320202,1753931463934,-460.0,0.00020763,2]
[376320204,1753931463944,-460.0,0.00020763,2]
[376320207,1753931463953,-460.0,0.00020763,2]
[376320209,1753931463963,-302.60309445,0.00020763,2]
[376320211,1753931463972,-460.0,0.00020763,2]
[376320213,1753931463981,-460.0,0.00020763,2]
[376320215,1753931463991,-460.0,0.00020763,2]
[376320217,1753931464003,-467.99340113,0.00020763,2]
[376320219,1753931464012,-460.0,0.00020763,2]
[376320221,1753931464021,-460.0,0.00020763,2]
[376320223,1753931464031,-460.0,0.00020763,2]
[376320225,1753931464041,-460.0,0.00020763,2]
[376320227,1753931464050,-460.0,0.00020763,2]
[376320229,1753931464060,-460.0,0.00020763,2]
[376320231,1753931464070,-460.0,0.00020763,2]
[376320233,1753931464079,-460.0,0.00020763,2]
[376320235,1753931464090,-460.0,0.00020763,2]
[376320237,1753931464100,-460.0,0.00020763,2]
[376320239,1753931464110,-460.0,0.00020763,2]
[376320241,1753931464120,-460.0,0.00020763,2]
[376320243,1753931464129,-460.0,0.00020763,2]
[376320245,1753931464139,-460.0,0.00020763,2]
[376320247,1753931464149,-460.0,0.00020763,2]
[376320249,1753931464159,-541.91,0.00020763,2]
[376320251,1753931464169,-460.0,0.00020763,2]
[376320253,1753931464178,-460.0,0.00020763,2]
[376320255,1753931464187,-460.0,0.00020763,2]
[376320257,1753931464197,-460.0,0.00020763,2]
[376320259,1753931464207,-460.0,0.00020763,2]
[376320261,1753931464216,-460.0,0.00020763,2]
[376320263,1753931464227,-460.0,0.00020763,2]
[376320264,1753931464236,-460.0,0.00020763,2]
[376320265,1753931464245,-460.0,0.00020763,2]
[376320266,1753931464254,-465.19100007,0.00020763,2]
[376320267,1753931464264,-460.0,0.00020763,2]
[376320268,1753931464274,-460.0,0.00020763,2]
[376320269,1753931464284,-285.74553366,0.00020763,2]
[376320270,1753931464293,-500.0,0.00020765,2]
[376320271,1753931464302,-460.0,0.00020768,2]
[376320272,1753931464312,-460.0,0.00020768,2]
[376320273,1753931464321,-460.0,0.00020768,2]
[376320274,1753931464330,-460.0,0.00020768,2]
[376320275,1753931464339,-460.0,0.00020768,2]
[376320276,1753931464348,-460.0,0.00020768,2]
[376320277,1753931464357,-1658.07,0.00020768,2]
[376320278,1753931464366,-460.0,0.00020768,2]
[376320279,1753931464375,-460.0,0.00020768,2]
[376320280,1753931464384,-3726.47,0.00020768,2]
[376320281,1753931464393,-460.0,0.00020768,2]
[376320282,1753931464407,-641.87,0.00020768,2]
[376320283,1753931464416,-1379.98,0.00020768,2]
[376320284,1753931464431,-460.0,0.00020768,2]
[376320285,1753931464448,-1704.11,0.00020768,2]
[376320286,1753931464466,-151.0,0.000208,4]
[376320287,1753931464481,-200.0,0.00020805,2]
[376320288,1753931464497,-322.3754919,0.00020822,2]
[376320289,1753931464512,-180.8158388,0.00020822,2]
[376320290,1753931464529,-154.3916909,0.00020822,2]
[376320291,1753931464543,-178.4701425,0.00020822,2]
[376320292,1753931464557,-318.7352055,0.00020822,2]
[376320293,1753931464572,-160.1336292,0.00020822,2]
[376320294,1753931464587,-586.7512099,0.00020822,2]
[376320295,1753931464603,-159.8381236,0.00020822,2]
[376320296,1753931464616,-178.4701425,0.00020822,2]
[376320297,1753931464631,-578.2915207,0.00020822,2]
[376320298,1753931464648,-153.0,0.00020822,2]
[376320299,1753931464664,-178.4701425,0.00020822,2]
[376320300,1753931464682,-578.2915207,0.00020822,2]
[376320301,1753931464693,-178.4701425,0.00020822,2]
[376320302,1753931464704,-578.2915207,0.00020822,2]
[376320303,1753931464720,-153.0,0.00020822,2]
[376320304,1753931464734,-180.0594654,0.00020822,2]
[376320305,1753931464747,-416.3695051,0.00020822,2]
[376320306,1753931464762,-153.0,0.00020822,2]
[376320308,1753931464773,-153.0,0.00020822,2]
[376320309,1753931464786,-153.0,0.00020822,2]
[376320311,1753931464799,-153.0,0.00020822,2]
[376320312,1753931464812,-153.0,0.00020822,2]
[376320314,1753931464825,-153.0,0.00020822,2]
[376320315,1753931464838,-153.0,0.00020822,2]